{"text_format":"2","workbook":"xlsx","n_sheets":1,"sheets":["Лист1"],"not_rendered":{"charts":0,"images":0,"macros":0,"external_links":0,"defined_names":0,"comments":0,"pivot_tables":0},"unopened":[],"bounds":{"document_bytes":16777216,"sheet_cells":100000,"run_cost":"one","rows_first":2000,"rows_last":500,"rows_between":2000,"halvings":0,"cell_chars":16384,"cell_head_chars":4096},"cells_cut":0,"cells_raw":0,"read":"whole","date_system":"1900"}

{"sheet":"Лист1","index":0,"n_rows":18,"n_cols":32,"rows_kept":18,"cut":false,"hidden":false,"merged":[[0,1,0,9],[0,29,0,30]]}
["Школа","МКОУ СОШ им.А..Шомахова с.п. Тамбовское",{"$nulls":9},"Календарь питания 2026 год",{"$nulls":16},"Год",2026]
[]
["Месяц",1,{"$f":"B3+1","v":2},{"$f":"C3+1","v":3},4,5,6,7,8,9,10,11,12,13,14,15,16,17,18,19,20,21,22,23,24,25,26,27,28,29,30,31]
["январь",{"$nulls":11},6,7,8,9,10,null,null,1,2,3,4,5,null,null,6,7,8,9,10]
["февраль",null,1,2,3,4,5,null,null,6,7,8,9,10,null,null,1,2,3,4,5,null,null,null,7,8,9,10]
["март",null,1,2,3,4,5,null,null,null,7,8,9,10,null,null,1,2,3,4,null,null,null,6,7,8,9,10]
["апрель",{"$nulls":5},6,7,8,9,10,null,null,1,2,3,4,5,null,null,6,null,8,9,10,null,null,1,2,3,4]
["май",null,null,null,6,7,8,9,10,null,null,null,2,3,4,5,null,null,6,7,8,null,10,null,null,1,2]
["сентябрь"]
["октябрь"]
["ноябрь"]
["декабрь"]
[]
[]
[{"$nulls":7},"Коричневый цвет - выходные"]
[{"$nulls":7},"Розовый цвет - праздничные дни"]
[{"$nulls":7},"Желтый цвет - каникулы"]
[{"$nulls":7},"Т.к меню у нас двухнедельное, 10-дневное, то указываем день по меню - с 1 по 10-ый день. Затем опять начинается с 1 по 10 день."]